[Event "Turkish Club Cup 2019"]
[Site "Konya"]
[Date "2019.07.19"]
[Round "6"]
[White "Canakay, Ahmet"]
[Black "Yatkin, Osman"]
[Result "1-0"]
[ECO "B23"]
[WhiteElo "1583"]
[BlackElo "1692"]
[Annotator "NA"]
[PlyCount "105"]
[EventDate "2019.07.16"]
[EventType "team-tourn"]
[EventCountry "TUR"]
[SourceTitle "playchess.com"]
[Source "ChessBase"]
[SourceQuality "1"]
[TimeControl "5400+30"]

1. e4 {[%emt 0:00:30]} c5 {[%emt 0:00:30]} 2. Nc3 {[%emt 0:00:00]} d6 {[%emt 0:00:30]} 3. Bb5+ {[%emt 0:00:00]} Nd7 {[%emt 0:01:30]} 4. f4 {[%emt 0:01:30]} a6 {[%emt 0:02:30]} 5. Bxd7+ {[%emt 0:00:00]} Bxd7 {[%emt 0:00:00]} 6. Nf3 {[%emt 0:00:00]} e6 {[%emt 0:02:00]} 7. O-O {[%emt 0:00:30]} Ne7 {[%emt 0:00:30]} 8. d4 {[%emt 0:03:30]} cxd4 {[%emt 0:01:30]} 9. Qxd4 {[%emt 0:00:30]} Nc6 {[%emt 0:00:30]} 10. Qf2 {[%emt 0:00:30]} Be7 {[%emt 0:02:30]} 11. a4 {[%emt 0:06:30]} Rb8 {[%emt 0:01:30]} 12. Be3 {[%emt 0:01:30]} b5 {[%emt 0:01:30]} 13. axb5 {[%emt 0:01:30]} axb5 {[%emt 0:00:30]} 14. Nd4 {[%emt 0:03:30]} b4 {[%emt 0:03:30]} 15. Nce2 {[%emt 0:01:30]} O-O {[%emt 0:01:30]} 16. Qf3 {[%emt 0:07:30]} Bf6 {[%emt 0:09:30]} 17. e5 {[%emt 0:01:30]} Nxd4 {[%emt 0:06:30]} 18. Bxd4 {[%emt 0:03:30]} Be7 {[%emt 0:06:30]} 19. Rfd1 {[%emt 0:08:30]} d5 {[%emt 0:05:30]} 20. g4 {[%emt 0:16:30]} Rc8 {[%emt 0:04:30]} 21. Rd2 {[%emt 0:02:30]} f6 {[%emt 0:02:30]} 22. Qe3 {[%emt 0:03:30]} fxe5 {[%emt 0:16:30]} 23. Qxe5 {[%emt 0:03:30]} Bf6 {[%emt 0:05:30]} 24. Qe3 {[%emt 0:03:30]} Rc4 {[%emt 0:07:57]} 25. c3 {[%emt 0:02:30]} bxc3 {[%emt 0:03:40]} 26. bxc3 {[%emt 0:00:30]} Re8 {[%emt 0:03:29]} 27. Ra7 {[%emt 0:14:33]} Bxd4 {[%emt 0:07:13]} 28. Nxd4 {[%emt 0:04:03]} Rc7 {[%emt 0:02:17]} 29. Rda2 {[%emt 0:01:46]} Qb8 {[%emt 0:01:51]} 30. Rxc7 {[%emt 0:04:12]} Qxc7 {[%emt 0:00:03]} 31. Nf3 {[%emt 0:01:02]} Qb8 {[%emt 0:00:57]} 32. Rf2 {[%emt 0:01:31]} Qb1+ {[%emt 0:00:30]} 33. Kg2 {[%emt 0:00:47]} Qe4 {[%emt 0:00:31]} 34. Qxe4 {[%emt 0:01:27]} dxe4 {[%emt 0:00:04]} 35. Ne5 {[%emt 0:00:00]} Bc8 {[%emt 0:01:04]} 36. Rb2 {[%emt 0:00:09]} Ba6 {[%emt 0:00:00]} 37. Kf2 {[%emt 0:00:13]} Rc8 {[%emt 0:00:30]} 38. Rb6 {[%emt 0:01:37]} Bd3 {[%emt 0:01:22]} 39. Rxe6 {[%emt 0:00:30]} Kf8 {[%emt 0:00:00]} 40. Rc6 {[%emt 0:00:31]} Rxc6 {[%emt 0:00:55]} 41. Nxc6 {[%emt 0:00:08]} Ke8 {[%emt 0:00:00]} 42. Ne5 {[%emt 0:00:35]} Bc2 {[%emt 0:00:03]} 43. Ke3 {[%emt 0:00:36]} Ke7 {[%emt 0:00:08]} 44. g5 {[%emt 0:00:05]} Kd6 {[%emt 0:00:10]} 45. Nc4+ {[%emt 0:00:16]} Kc5 {[%emt 0:00:15]} 46. Nd2 {[%emt 0:00:17]} Kd5 {[%emt 0:00:42]} 47. c4+ {[%emt 0:01:02]} Kc5 {[%emt 0:00:01]} 48. f5 {[%emt 0:00:00]} Ba4 {[%emt 0:01:05]} 49. Kxe4 {[%emt 0:00:11]} Kd6 {[%emt 0:00:30]} 50. h4 {[%emt 0:00:26]} Bc6+ {[%emt 0:00:47]} 51. Kf4 {[%emt 0:00:58]} Kc5 {[%emt 0:00:36]} 52. Ke5 {[%emt 0:00:42]} Bd7 {[%emt 0:00:03]} 53. f6 {[%emt 0:00:01]} 1-0

[Event "Turkish Club Cup 2019"]
[Site "Konya"]
[Date "2019.07.19"]
[Round "6"]
[White "Alev, Gonulden Seda"]
[Black "Kiziltas, Ece Su"]
[Result "0-1"]
[ECO "B15"]
[WhiteElo "1579"]
[BlackElo "1400"]
[Annotator "NA"]
[PlyCount "114"]
[EventDate "2019.07.16"]
[EventType "team-tourn"]
[EventCountry "TUR"]
[SourceTitle "playchess.com"]
[Source "ChessBase"]
[SourceQuality "1"]
[TimeControl "5400+30"]

1. e4 {[%emt 0:00:30]} g6 {[%emt 0:00:30]} 2. d4 {[%emt 0:00:00]} Bg7 {[%emt 0:00:00]} 3. Nc3 {[%emt 0:01:00]} c6 {[%emt 0:00:00]} 4. f4 {[%emt 0:01:30]} d5 {[%emt 0:00:30]} 5. e5 {[%emt 0:00:30]} h5 {[%emt 0:00:30]} 6. Nf3 {[%emt 0:03:30]} Bg4 {[%emt 0:00:30]} 7. h3 {[%emt 0:00:30]} Bxf3 {[%emt 0:00:00]} 8. Qxf3 {[%emt 0:00:00]} e6 {[%emt 0:00:00]} 9. Be3 {[%emt 0:07:00]} h4 {[%emt 0:01:30]} 10. Bd3 {[%emt 0:01:30]} Nh6 {[%emt 0:01:30]} 11. Ne2 {[%emt 0:04:30]} Nf5 {[%emt 0:01:30]} 12. b3 {[%emt 0:04:30]} Bf8 {[%emt 0:06:30]} 13. Bd2 {[%emt 0:10:30]} Qb6 {[%emt 0:12:30]} 14. Qf2 {[%emt 0:04:30]} Na6 {[%emt 0:07:30]} 15. c3 {[%emt 0:20:30]} Be7 {[%emt 0:10:30]} 16. O-O {[%emt 0:02:30]} O-O-O {[%emt 0:04:30]} 17. a4 {[%emt 0:03:30]} Qc7 {[%emt 0:12:30]} 18. b4 {[%emt 0:02:30]} Nb8 {[%emt 0:04:30]} 19. b5 {[%emt 0:05:30]} c5 {[%emt 0:05:30]} 20. a5 {[%emt 0:01:30]} c4 {[%emt 0:01:30]} 21. Bc2 {[%emt 0:00:30]} Bf8 {[%emt 0:04:30]} 22. Rfb1 {[%emt 0:03:30]} Qe7 {[%emt 0:01:30]} 23. Bc1 {[%emt 0:03:04]} Qe8 {[%emt 0:00:30]} 24. Ba4 {[%emt 0:06:11]} Nd7 {[%emt 0:00:30]} 25. Qe1 {[%emt 0:01:55]} Be7 {[%emt 0:01:30]} 26. Qd2 {[%emt 0:06:15]} Qf8 {[%emt 0:01:30]} 27. Qa2 {[%emt 0:00:50]} Qg7 {[%emt 0:06:26]} 28. Bc2 {[%emt 0:03:34]} Rdg8 {[%emt 0:00:48]} 29. Ba4 {[%emt 0:01:37]} Qf8 {[%emt 0:01:32]} 30. b6 {[%emt 0:00:35]} a6 {[%emt 0:00:06]} 31. Ba3 {[%emt 0:00:45]} Bxa3 {[%emt 0:00:50]} 32. Qxa3 {[%emt 0:00:03]} Qxa3 {[%emt 0:00:10]} 33. Rxa3 {[%emt 0:00:04]} g5 {[%emt 0:00:39]} 34. Ra2 {[%emt 0:01:19]} g4 {[%emt 0:01:34]} 35. Kf2 {[%emt 0:00:43]} gxh3 {[%emt 0:02:38]} 36. gxh3 {[%emt 0:00:06]} Rg7 {[%emt 0:01:59]} 37. Bc2 {[%emt 0:00:35]} Ng3 {[%emt 0:02:16]} 38. Kf3 {[%emt 0:00:51]} Nxe2 {[%emt 0:01:13]} 39. Kxe2 {[%emt 0:00:03]} Rg2+ {[%emt 0:00:45]} 40. Kf1 {[%emt 0:00:57]} Rhg8 {[%emt 0:00:19]} 41. Rab2 {[%emt 0:00:31]} R2g3 {[%emt 0:00:59]} 42. Bd1 {[%emt 0:00:28]} Rxh3 {[%emt 0:00:35]} 43. Rg2 {[%emt 0:00:28]} Rxg2 {[%emt 0:01:04]} 44. Kxg2 {[%emt 0:00:03]} Rxc3 {[%emt 0:01:30]} 45. Bh5 {[%emt 0:00:42]} f6 {[%emt 0:01:09]} 46. Bf7 {[%emt 0:00:31]} fxe5 {[%emt 0:00:20]} 47. Bxe6 {[%emt 0:00:40]} exd4 {[%emt 0:00:30]} 48. Bxd5 {[%emt 0:00:05]} d3 {[%emt 0:01:12]} 49. Bf3 {[%emt 0:01:03]} Rc2+ {[%emt 0:00:30]} 50. Kh3 {[%emt 0:00:24]} d2 {[%emt 0:00:17]} 51. Rd1 {[%emt 0:00:33]} c3 {[%emt 0:00:21]} 52. Be4 {[%emt 0:00:34]} Rb2 {[%emt 0:01:42]} 53. Rg1 {[%emt 0:00:17]} Nf6 {[%emt 0:00:28]} 54. Bf5+ {[%emt 0:00:12]} Kd8 {[%emt 0:00:12]} 55. Kxh4 {[%emt 0:01:00]} c2 {[%emt 0:00:17]} 56. Bxc2 {[%emt 0:00:52]} Rxc2 {[%emt 0:00:06]} 57. Rd1 {[%emt 0:00:04]} Ne4 {[%emt 0:00:18]} 0-1

[Event "Turkish Club Cup 2019"]
[Site "Konya"]
[Date "2019.07.19"]
[Round "6"]
[White "Acar, Eren"]
[Black "Aydin, Gulenay"]
[Result "0-1"]
[ECO "A05"]
[WhiteElo "1539"]
[BlackElo "1934"]
[Annotator "NA"]
[PlyCount "36"]
[EventDate "2019.07.16"]
[EventType "team-tourn"]
[EventCountry "TUR"]
[SourceTitle "playchess.com"]
[Source "ChessBase"]
[SourceQuality "1"]
[TimeControl "5400+30"]

1. a3 {[%emt 0:00:30]} Nf6 {[%emt 0:01:30]} 2. Nf3 {[%emt 0:00:00]} g6 {[%emt 0:01:30]} 3. d4 {[%emt 0:00:00]} Bg7 {[%emt 0:00:30]} 4. Bf4 {[%emt 0:00:30]} O-O {[%emt 0:00:30]} 5. c4 {[%emt 0:00:30]} d6 {[%emt 0:00:30]} 6. Nc3 {[%emt 0:00:30]} Nbd7 {[%emt 0:05:30]} 7. Qd2 {[%emt 0:02:30]} Re8 {[%emt 0:05:30]} 8. Bh6 {[%emt 0:04:30]} e5 {[%emt 0:03:30]} 9. d5 {[%emt 0:02:30]} Nc5 {[%emt 0:08:30]} 10. Bxg7 {[%emt 0:02:30]} Kxg7 {[%emt 0:01:30]} 11. Rd1 {[%emt 0:05:30]} e4 {[%emt 0:05:30]} 12. Nd4 {[%emt 0:01:30]} e3 {[%emt 0:04:30]} 13. Qc2 {[%emt 0:07:30]} Ng4 {[%emt 0:05:30]} 14. b4 {[%emt 0:08:30]} exf2+ {[%emt 0:02:30]} 15. Kd2 {[%emt 0:00:00]} Ne3 {[%emt 0:00:30]} 16. Qb1 {[%emt 0:03:00]} Nxc4+ {[%emt 0:05:30]} 17. Kc1 {[%emt 0:01:30]} Qg5+ {[%emt 0:00:30]} 18. Kc2 {[%emt 0:02:30]} Nxa3+ {[%emt 0:00:30]} 0-1

[Event "Turkish Club Cup 2019"]
[Site "Konya"]
[Date "2019.07.19"]
[Round "6"]
[White "Ozgur, Sina"]
[Black "Yaman, Sila"]
[Result "0-1"]
[ECO "E43"]
[WhiteElo "1524"]
[BlackElo "1381"]
[Annotator "NA"]
[PlyCount "86"]
[EventDate "2019.07.16"]
[EventType "team-tourn"]
[EventCountry "TUR"]
[SourceTitle "playchess.com"]
[Source "ChessBase"]
[SourceQuality "1"]
[TimeControl "5400+30"]

1. d4 {[%emt 0:00:30]} Nf6 {[%emt 0:00:30]} 2. c4 {[%emt 0:00:30]} e6 {[%emt 0:00:30]} 3. Nc3 {[%emt 0:00:00]} Bb4 {[%emt 0:00:00]} 4. e3 {[%emt 0:00:00]} b6 {[%emt 0:00:00]} 5. Bd3 {[%emt 0:00:30]} Bb7 {[%emt 0:00:00]} 6. f3 {[%emt 0:00:30]} c5 {[%emt 0:04:00]} 7. Nge2 {[%emt 0:00:30]} cxd4 {[%emt 0:00:30]} 8. exd4 {[%emt 0:00:30]} O-O {[%emt 0:02:30]} 9. O-O {[%emt 0:00:30]} d5 {[%emt 0:01:30]} 10. Bg5 {[%emt 0:01:30]} Be7 {[%emt 0:01:30]} 11. Rc1 {[%emt 0:05:30]} dxc4 {[%emt 0:02:30]} 12. Bxc4 {[%emt 0:04:30]} Nbd7 {[%emt 0:03:30]} 13. Qb3 {[%emt 0:05:30]} a6 {[%emt 0:18:30]} 14. a4 {[%emt 0:03:30]} Ne8 {[%emt 0:01:30]} 15. Bxe7 {[%emt 0:01:30]} Qxe7 {[%emt 0:00:30]} 16. Ne4 {[%emt 0:04:30]} Nef6 {[%emt 0:06:30]} 17. N2g3 {[%emt 0:03:30]} Nd5 {[%emt 0:02:30]} 18. Rfe1 {[%emt 0:09:30]} Rfd8 {[%emt 0:05:30]} 19. Kh1 {[%emt 0:22:30]} Rab8 {[%emt 0:10:30]} 20. Nc3 {[%emt 0:03:30]} N7f6 {[%emt 0:03:30]} 21. Re5 {[%emt 0:10:30]} Qd6 {[%emt 0:09:30]} 22. Nge4 {[%emt 0:07:01]} Nxe4 {[%emt 0:02:30]} 23. fxe4 {[%emt 0:03:23]} Nxc3 {[%emt 0:08:06]} 24. bxc3 {[%emt 0:00:11]} Re8 {[%emt 0:00:22]} 25. Bd3 {[%emt 0:04:02]} f6 {[%emt 0:01:34]} 26. Rh5 {[%emt 0:00:12]} Qf4 {[%emt 0:01:00]} 27. Rf1 {[%emt 0:01:06]} Qd2 {[%emt 0:01:30]} 28. Rh3 {[%emt 0:02:59]} b5 {[%emt 0:01:38]} 29. axb5 {[%emt 0:03:12]} axb5 {[%emt 0:00:11]} 30. d5 {[%emt 0:01:56]} exd5 {[%emt 0:02:04]} 31. exd5 {[%emt 0:00:09]} Re1 {[%emt 0:00:21]} 32. Bxh7+ {[%emt 0:01:17]} Kf8 {[%emt 0:00:11]} 33. Qb4+ {[%emt 0:00:37]} Kf7 {[%emt 0:00:29]} 34. Bd3 {[%emt 0:00:48]} Bxd5 {[%emt 0:00:29]} 35. Rg3 {[%emt 0:00:57]} Rbe8 {[%emt 0:00:06]} 36. Qg4 {[%emt 0:00:06]} Qf2 {[%emt 0:02:06]} 37. Qxg7+ {[%emt 0:00:55]} Ke6 {[%emt 0:00:03]} 38. Qg4+ {[%emt 0:00:06]} Kd6 {[%emt 0:00:18]} 39. Qb4+ {[%emt 0:00:54]} Kc6 {[%emt 0:00:08]} 40. Qxb5+ {[%emt 0:00:00]} Kd6 {[%emt 0:00:24]} 41. Qa6+ {[%emt 0:00:28]} Ke5 {[%emt 0:01:37]} 42. Qb5 {[%emt 0:00:28]} Rh8 {[%emt 0:00:51]} 43. c4 {[%emt 0:00:38]} Rxf1+ {[%emt 0:00:09]} 0-1

[Event "Turkish Club Cup 2019"]
[Site "Konya"]
[Date "2019.07.19"]
[Round "6"]
[White "Tuncer, Duru"]
[Black "Demir, Aleyna"]
[Result "1-0"]
[ECO "B01"]
[WhiteElo "1520"]
[BlackElo "1354"]
[Annotator "NA"]
[PlyCount "97"]
[EventDate "2019.07.16"]
[EventType "team-tourn"]
[EventCountry "TUR"]
[SourceTitle "playchess.com"]
[Source "ChessBase"]
[SourceQuality "1"]
[TimeControl "5400+30"]

1. e4 {[%emt 0:00:30]} d5 {[%emt 0:00:30]} 2. exd5 {[%emt 0:00:30]} Qxd5 {[%emt 0:00:00]} 3. Nc3 {[%emt 0:00:00]} Qa5 {[%emt 0:00:00]} 4. Bc4 {[%emt 0:00:00]} c6 {[%emt 0:01:30]} 5. d3 {[%emt 0:00:30]} Nf6 {[%emt 0:00:30]} 6. h3 {[%emt 0:01:30]} Bf5 {[%emt 0:03:30]} 7. Nf3 {[%emt 0:00:30]} Qc7 {[%emt 0:01:30]} 8. O-O {[%emt 0:01:30]} Nbd7 {[%emt 0:03:30]} 9. Re1 {[%emt 0:02:30]} e6 {[%emt 0:01:30]} 10. Nd4 {[%emt 0:27:30]} O-O-O {[%emt 0:23:30]} 11. Nxf5 {[%emt 0:01:30]} exf5 {[%emt 0:00:30]} 12. Bxf7 {[%emt 0:01:30]} Bc5 {[%emt 0:01:30]} 13. Qf3 {[%emt 0:06:30]} g6 {[%emt 0:02:30]} 14. Be6 {[%emt 0:02:30]} Nh5 {[%emt 0:03:30]} 15. Be3 {[%emt 0:15:30]} Bxe3 {[%emt 0:02:30]} 16. Qxe3 {[%emt 0:07:30]} Kb8 {[%emt 0:06:30]} 17. Bxd7 {[%emt 0:04:30]} Rxd7 {[%emt 0:00:30]} 18. Qe5 {[%emt 0:04:30]} Rhd8 {[%emt 0:00:30]} 19. Qxc7+ {[%emt 0:04:28]} Kxc7 {[%emt 0:00:30]} 20. g3 {[%emt 0:00:48]} Nf6 {[%emt 0:02:30]} 21. Re6 {[%emt 0:01:54]} Nd5 {[%emt 0:02:30]} 22. Nxd5+ {[%emt 0:00:15]} Rxd5 {[%emt 0:00:30]} 23. Rae1 {[%emt 0:00:55]} Rc5 {[%emt 0:00:30]} 24. R1e2 {[%emt 0:00:29]} Ra5 {[%emt 0:04:30]} 25. a3 {[%emt 0:00:17]} Rb5 {[%emt 0:00:30]} 26. b3 {[%emt 0:00:20]} Rc5 {[%emt 0:01:30]} 27. f4 {[%emt 0:01:21]} Rcd5 {[%emt 0:07:30]} 28. Kf2 {[%emt 0:00:23]} R8d6 {[%emt 0:03:30]} 29. Re7+ {[%emt 0:01:14]} Rd7 {[%emt 0:00:00]} 30. Rxd7+ {[%emt 0:02:06]} Kxd7 {[%emt 0:00:00]} 31. Re3 {[%emt 0:01:08]} Rc5 {[%emt 0:00:30]} 32. c4 {[%emt 0:00:16]} Ra5 {[%emt 0:02:30]} 33. a4 {[%emt 0:00:16]} Kd6 {[%emt 0:02:30]} 34. d4 {[%emt 0:00:21]} Ra6 {[%emt 0:03:44]} 35. Ke2 {[%emt 0:02:27]} Kd7 {[%emt 0:00:23]} 36. Kd3 {[%emt 0:01:26]} Rb6 {[%emt 0:03:05]} 37. Kc3 {[%emt 0:00:04]} a5 {[%emt 0:01:14]} 38. Re5 {[%emt 0:00:50]} Ra6 {[%emt 0:00:18]} 39. g4 {[%emt 0:04:13]} fxg4 {[%emt 0:00:30]} 40. hxg4 {[%emt 0:00:04]} b6 {[%emt 0:00:00]} 41. f5 {[%emt 0:00:42]} gxf5 {[%emt 0:00:04]} 42. Rxf5 {[%emt 0:01:12]} Ke7 {[%emt 0:00:29]} 43. Rh5 {[%emt 0:00:22]} Kf6 {[%emt 0:00:53]} 44. Rxh7 {[%emt 0:00:29]} Kg5 {[%emt 0:00:25]} 45. Rg7+ {[%emt 0:00:33]} Kf6 {[%emt 0:01:26]} 46. Rc7 {[%emt 0:00:04]} b5 {[%emt 0:01:24]} 47. cxb5 {[%emt 0:00:44]} cxb5 {[%emt 0:00:29]} 48. axb5 {[%emt 0:00:00]} Rb6 {[%emt 0:00:21]} 49. Rc6+ {[%emt 0:00:00]} 1-0

[Event "Turkish Club Cup 2019"]
[Site "Konya"]
[Date "2019.07.19"]
[Round "6"]
[White "Efendioglu, Ahmet"]
[Black "Akin, Batikan Aybey"]
[Result "1/2-1/2"]
[ECO "A40"]
[WhiteElo "1511"]
[BlackElo "1610"]
[Annotator "NA"]
[PlyCount "61"]
[EventDate "2019.07.16"]
[EventType "team-tourn"]
[EventCountry "TUR"]
[SourceTitle "playchess.com"]
[Source "ChessBase"]
[SourceQuality "1"]
[TimeControl "5400+30"]

1. d4 {[%emt 0:00:30]} b5 {[%emt 0:00:30]} 2. Bf4 {[%emt 0:00:30]} Bb7 {[%emt 0:00:30]} 3. Nf3 {[%emt 0:01:30]} e6 {[%emt 0:01:30]} 4. e3 {[%emt 0:01:30]} a6 {[%emt 0:00:30]} 5. Bd3 {[%emt 0:00:30]} c5 {[%emt 0:02:30]} 6. c3 {[%emt 0:02:30]} Nf6 {[%emt 0:01:30]} 7. Nbd2 {[%emt 0:01:30]} d5 {[%emt 0:02:30]} 8. O-O {[%emt 0:01:30]} c4 {[%emt 0:01:30]} 9. Bc2 {[%emt 0:02:30]} Bd6 {[%emt 0:02:30]} 10. Bxd6 {[%emt 0:03:30]} Qxd6 {[%emt 0:00:00]} 11. Qe2 {[%emt 0:01:30]} Ne4 {[%emt 0:05:00]} 12. Nxe4 {[%emt 0:05:30]} dxe4 {[%emt 0:00:30]} 13. Nd2 {[%emt 0:00:00]} f5 {[%emt 0:01:30]} 14. b3 {[%emt 0:02:00]} cxb3 {[%emt 0:11:30]} 15. axb3 {[%emt 0:02:30]} Nd7 {[%emt 0:03:30]} 16. c4 {[%emt 0:04:30]} Bc6 {[%emt 0:02:30]} 17. f4 {[%emt 0:06:30]} exf3 {[%emt 0:05:30]} 18. Nxf3 {[%emt 0:01:30]} Nf6 {[%emt 0:03:30]} 19. cxb5 {[%emt 0:04:30]} Bxf3 {[%emt 0:06:30]} 20. gxf3 {[%emt 0:05:30]} a5 {[%emt 0:01:30]} 21. Qd2 {[%emt 0:04:30]} O-O {[%emt 0:05:30]} 22. Rxa5 {[%emt 0:04:30]} Rxa5 {[%emt 0:05:30]} 23. Qxa5 {[%emt 0:00:00]} f4 {[%emt 0:00:00]} 24. Qd2 {[%emt 0:04:00]} Nd5 {[%emt 0:03:00]} 25. exf4 {[%emt 0:06:30]} Nxf4 {[%emt 0:01:30]} 26. Be4 {[%emt 0:07:30]} Rb8 {[%emt 0:09:30]} 27. Rd1 {[%emt 0:18:37]} Rxb5 {[%emt 0:04:50]} 28. Kh1 {[%emt 0:04:00]} g6 {[%emt 0:02:51]} 29. Qc2 {[%emt 0:01:31]} Kg7 {[%emt 0:02:41]} 30. Qc4 {[%emt 0:02:10]} Rb4 {[%emt 0:00:43]} 31. Qc5 {[%emt 0:00:36]} 1/2-1/2

[Event "Turkish Club Cup 2019"]
[Site "Konya"]
[Date "2019.07.19"]
[Round "6"]
[White "Yilmaz, Seyma"]
[Black "Asan, Elvan"]
[Result "1-0"]
[ECO "D02"]
[WhiteElo "1500"]
[BlackElo "1760"]
[Annotator "NA"]
[PlyCount "75"]
[EventDate "2019.07.16"]
[EventType "team-tourn"]
[EventCountry "TUR"]
[SourceTitle "playchess.com"]
[Source "ChessBase"]
[SourceQuality "1"]
[TimeControl "5400+30"]

1. d4 {[%emt 0:00:30]} d5 {[%emt 0:01:30]} 2. Nf3 {[%emt 0:00:00]} c6 {[%emt 0:00:00]} 3. e3 {[%emt 0:00:00]} Bg4 {[%emt 0:01:00]} 4. b3 {[%emt 0:01:30]} Nd7 {[%emt 0:01:30]} 5. Bb2 {[%emt 0:00:30]} e6 {[%emt 0:00:30]} 6. Bd3 {[%emt 0:00:00]} Ngf6 {[%emt 0:00:30]} 7. Nbd2 {[%emt 0:00:00]} Bb4 {[%emt 0:03:30]} 8. a3 {[%emt 0:04:30]} Bd6 {[%emt 0:03:30]} 9. h3 {[%emt 0:02:30]} Bxf3 {[%emt 0:02:30]} 10. Qxf3 {[%emt 0:13:30]} Qe7 {[%emt 0:04:30]} 11. O-O {[%emt 0:04:30]} O-O {[%emt 0:02:30]} 12. e4 {[%emt 0:06:30]} e5 {[%emt 0:12:30]} 13. Rfe1 {[%emt 0:03:30]} exd4 {[%emt 0:05:30]} 14. exd5 {[%emt 0:03:30]} Ne5 {[%emt 0:02:30]} 15. Qd1 {[%emt 0:05:30]} Nxd5 {[%emt 0:04:30]} 16. Nc4 {[%emt 0:09:30]} Nf4 {[%emt 0:12:30]} 17. Nxd6 {[%emt 0:07:30]} Qxd6 {[%emt 0:00:30]} 18. Bf1 {[%emt 0:01:30]} c5 {[%emt 0:05:30]} 19. Re4 {[%emt 0:04:30]} Neg6 {[%emt 0:02:30]} 20. Qf3 {[%emt 0:07:30]} b6 {[%emt 0:05:30]} 21. g3 {[%emt 0:02:30]} Ne6 {[%emt 0:00:30]} 22. h4 {[%emt 0:02:00]} Rae8 {[%emt 0:07:30]} 23. Rae1 {[%emt 0:01:35]} f5 {[%emt 0:04:28]} 24. Rxe6 {[%emt 0:00:34]} Rxe6 {[%emt 0:02:31]} 25. Rxe6 {[%emt 0:00:10]} Ne5 {[%emt 0:01:36]} 26. Rxd6 {[%emt 0:03:53]} Nxf3+ {[%emt 0:00:07]} 27. Kh1 {[%emt 0:00:05]} Re8 {[%emt 0:00:29]} 28. Bc4+ {[%emt 0:00:20]} Kf8 {[%emt 0:00:36]} 29. Re6 {[%emt 0:00:31]} Rd8 {[%emt 0:02:37]} 30. Bc1 {[%emt 0:00:40]} h6 {[%emt 0:02:44]} 31. Kg2 {[%emt 0:00:25]} d3 {[%emt 0:00:59]} 32. Bxd3 {[%emt 0:00:22]} Nd4 {[%emt 0:00:05]} 33. Re3 {[%emt 0:01:18]} g6 {[%emt 0:01:48]} 34. Bb2 {[%emt 0:01:02]} Rd6 {[%emt 0:02:22]} 35. a4 {[%emt 0:00:28]} Ne6 {[%emt 0:01:59]} 36. Bc4 {[%emt 0:01:23]} Nd4 {[%emt 0:00:42]} 37. Bxd4 {[%emt 0:00:33]} Rxd4 {[%emt 0:00:25]} 38. Bd3 {[%emt 0:00:27]} 1-0

[Event "Turkish Club Cup 2019"]
[Site "Konya"]
[Date "2019.07.19"]
[Round "6"]
[White "Aslan, Lina"]
[Black "Bicaklioglu, Dilara"]
[Result "0-1"]
[ECO "C54"]
[WhiteElo "1493"]
[BlackElo "1305"]
[Annotator "NA"]
[PlyCount "80"]
[EventDate "2019.07.16"]
[EventType "team-tourn"]
[EventCountry "TUR"]
[SourceTitle "playchess.com"]
[Source "ChessBase"]
[SourceQuality "1"]
[TimeControl "5400+30"]

1. e4 {[%emt 0:00:30]} e5 {[%emt 0:00:30]} 2. Nf3 {[%emt 0:00:30]} Nc6 {[%emt 0:00:30]} 3. Bc4 {[%emt 0:00:00]} Bc5 {[%emt 0:00:00]} 4. c3 {[%emt 0:00:00]} Nf6 {[%emt 0:00:00]} 5. d3 {[%emt 0:00:00]} O-O {[%emt 0:00:30]} 6. O-O {[%emt 0:00:00]} a6 {[%emt 0:01:30]} 7. a4 {[%emt 0:01:30]} d6 {[%emt 0:00:30]} 8. Nbd2 {[%emt 0:01:30]} Ba7 {[%emt 0:02:30]} 9. h3 {[%emt 0:02:30]} Ne7 {[%emt 0:01:30]} 10. Re1 {[%emt 0:02:30]} Ng6 {[%emt 0:01:30]} 11. Nf1 {[%emt 0:06:30]} c6 {[%emt 0:06:30]} 12. Ng3 {[%emt 0:05:30]} h6 {[%emt 0:06:30]} 13. Nf5 {[%emt 0:14:30]} Bxf5 {[%emt 0:04:30]} 14. exf5 {[%emt 0:00:30]} Ne7 {[%emt 0:02:30]} 15. Nh4 {[%emt 0:01:30]} Qd7 {[%emt 0:01:30]} 16. Qf3 {[%emt 0:01:30]} d5 {[%emt 0:00:30]} 17. Ba2 {[%emt 0:01:30]} e4 {[%emt 0:06:30]} 18. dxe4 {[%emt 0:02:30]} dxe4 {[%emt 0:05:30]} 19. Qf4 {[%emt 0:04:30]} Bb8 {[%emt 0:01:30]} 20. Qd2 {[%emt 0:19:30]} Qc8 {[%emt 0:24:30]} 21. Ng6 {[%emt 0:04:30]} Re8 {[%emt 0:00:30]} 22. Qd4 {[%emt 0:03:30]} Nxf5 {[%emt 0:02:30]} 23. Qd1 {[%emt 0:10:10]} Ba7 {[%emt 0:14:13]} 24. Be3 {[%emt 0:02:48]} Nxe3 {[%emt 0:01:10]} 25. fxe3 {[%emt 0:00:11]} Qf5 {[%emt 0:00:52]} 26. Nh4 {[%emt 0:04:56]} Qg5 {[%emt 0:00:15]} 27. Nf3 {[%emt 0:05:33]} Bxe3+ {[%emt 0:00:34]} 28. Kh1 {[%emt 0:00:11]} exf3 {[%emt 0:00:32]} 29. Qxf3 {[%emt 0:00:03]} Ba7 {[%emt 0:04:54]} 30. Red1 {[%emt 0:02:28]} Re3 {[%emt 0:00:51]} 31. Qf1 {[%emt 0:00:31]} Rae8 {[%emt 0:01:39]} 32. Re1 {[%emt 0:01:20]} Rxe1 {[%emt 0:02:55]} 33. Rxe1 {[%emt 0:00:30]} Rxe1 {[%emt 0:00:30]} 34. Qxe1 {[%emt 0:00:30]} Qe3 {[%emt 0:00:00]} 35. Qd1 {[%emt 0:00:00]} Bb6 {[%emt 0:01:07]} 36. Qf1 {[%emt 0:01:12]} Qf2 {[%emt 0:00:12]} 37. Qc1 {[%emt 0:00:21]} Ne4 {[%emt 0:00:10]} 38. Bb1 {[%emt 0:00:00]} Ng3+ {[%emt 0:00:25]} 39. Kh2 {[%emt 0:00:29]} Nf1+ {[%emt 0:00:31]} 40. Kh1 {[%emt 0:00:30]} Qg1# {[%emt 0:00:00]} 0-1